Cogmind - Beta 10 @@@ ROGUE MODE // 2020.09.17 @ 19:52:30 Player: eldritch Result: Self-destructed Performance ------------- Evolutions (2) 1000 Regions Visited (4) 800 Robots Destroyed (31) 155 Value Destroyed (778) 778 Prototype IDs (3) 60 Alien Tech Used (0) 0 Bonus (25) 25 TOTAL SCORE: 2818 Bonus ------- Follower Combat Kills 25 Cogmind --------- Core Integrity 451/550 Matter 300/300 Energy 250/250 System Corruption 0% Temperature Cool (0) Movement Treading (180) Ox1 Location -8/Materials Parts ------- > --- POWER (1) -------- Ion Engine > --- PROPULSION (3) --- Light Treads Light Treads Wheel > --- UTILITY (4) ------ Cooling System High-capacity Storage Unit High-capacity Storage Unit Visual Processing Unit > --- WEAPON (3) ------- Improved Medium Laser Advanced Beam Rifle Autogun > --- INVENTORY (20) --- Ion Engine Light Nuclear Core Aluminum Leg Wheel Cooling System Experimental Sensor Array Signal Interpreter Improved Light Armor Plating Hacking Suite Improved Medium Laser Improved Medium Laser Advanced Beam Rifle Advanced Beam Rifle Autogun Mini Grenade Launcher Datajack Flail Peak State ------------ > --- POWER ------------ Ion Engine > --- PROPULSION ------- Wheel Wheel Wheel > --- UTILITY ---------- Cooling System High-capacity Storage Unit High-capacity Storage Unit Visual Processing Unit > --- WEAPON ----------- Improved Medium Laser Advanced Beam Rifle Autogun > --- INVENTORY -------- Ion Engine Light Nuclear Core Light Treads Light Treads Aluminum Leg Aluminum Leg Cooling System Experimental Sensor Array Signal Interpreter Improved Light Armor Plating Hacking Suite Improved Medium Laser Advanced Beam Rifle Advanced Beam Rifle Autogun Mini Grenade Launcher Datajack Flail [Rating: 23] Favorites ----------- Power Ion Engine Engine Ion Engine Propulsion Aluminum Leg Treads Light Treads Leg Aluminum Leg Wheel Wheel Utility High-capacity Storage Unit Device Structural Scanner Storage High-capacity Storage Unit Processor Visual Processing Unit Weapon Light Assault Rifle Energy Gun Beamcaster Ballistic Gun Light Assault Rifle Launcher Mini Grenade Launcher Build | -11 -10 -10 -9 -8 ------- Run | Scr Mat Min Mat Mat Slots Evolved 4 | . . . 2 2 Power . | . . . . . Propulsion 1 | . . . 1 . Utility 2 | . . . 1 1 Weapon 1 | . . . . 1 Parts Attached 27 | . 4 2 10 11 Power 5 | . 1 2 2 . Engine 5 | . 1 2 2 . Core . | . . . . . Reactor . | . . . . . Propulsion 9 | . 1 . 3 5 Treads 4 | . . . 2 2 Leg 2 | . 1 . 1 . Wheel 3 | . . . . 3 Hover . | . . . . . Flight . | . . . . . Utility 5 | . 2 . 2 1 Device 2 | . 1 . 1 . Storage 2 | . 1 . . 1 Processor 1 | . . . 1 . Hackware . | . . . . . Protection . | . . . . . Artifact . | . . . . . Weapon 8 | . . . 3 5 Energy Gun 5 | . . . 2 3 Energy Cannon . | . . . . . Ballistic Gun 2 | . . . 1 1 Ballistic Cannon . | . . . . . Launcher 1 | . . . . 1 Special Weapon . | . . . . . Impact Weapon . | . . . . . Slashing Weapon . | . . . . . Piercing Weapon . | . . . . . Special Melee Weapon . | . . . . . Unidentified Prototypes 2 | . . . . 2 Parts Lost 6 | . . . 5 1 Power 1 | . . . 1 . Propulsion 3 | . . . 2 1 Utility . | . . . . . Weapon 2 | . . . 2 . Highest Loss Streak 5 | . . . 5 1 Average Slot Usage (%) 96 | . 96 100 91 97 Engine 11 | . 14 14 10 9 Treads 4 | . . . 11 3 Leg 19 | . 28 28 22 . Wheel 5 | . . . . 22 Device 11 | . 10 14 12 9 Storage 13 | . 14 14 11 17 Processor 3 | . . . 3 9 Energy Gun 6 | . . . 10 11 Ballistic Gun 19 | . 28 28 10 14 Naked Turns . | . . . . . Heaviest Build 82 | 9 38 40 47 82 Greatest Support 40 | 20 20 20 40 40 Greatest Overweight (x) 3 | . 1 1 2 3 Average Overweight (x) 1 | . . 1 1 1 Largest Inventory Capacity 20 | . 12 12 12 20 Average Capacity 13 | . 9 12 12 19 Most Carried 19 | . 7 11 12 19 Average Carried 10 | . 6 9 11 13 Final Capacity 20 | 6 12 12 12 20 Final Carried 17 | 6 7 11 12 17 Class Distribution -------------------- 78% | Mutant 19% | Hauler-Skirmisher Dominant Class ---------------- Mutant | -10/Materials Mutant | -10/Mines Mutant | -9/Materials Hauler-Skirmisher | -8/Materials Resources | -11 -10 -10 -9 -8 ----------- Run | Scr Mat Min Mat Mat Matter Collected 734 | 200 13 93 88 340 Remotely . | . . . . . Salvage Created 999 | . 102 43 171 683 Parts 69 | . 11 3 12 43 Haulers Intercepted 1 | . . . . 1 Recyclers Shooed 1 | . 1 . . . Parts Field Recycled . | . . . . . Retrieved Matter . | . . . . . Parts Self-Destructed . | . . . . . Prevented . | . . . . . Kills | -11 -10 -10 -9 -8 ------- Run | Scr Mat Min Mat Mat Combat Hostiles Destroyed 24 | . 4 3 3 14 Melee 1 | . . . 1 . Guns 19 | . 4 3 2 10 AOE 4 | . . . . 4 Classes Destroyed 8 | . 3 . 2 3 Worker 2 | . . . . 2 Tunneler 2 | . 1 . . 1 Hauler 1 | . . . . 1 Operator 1 | . . . 1 . Watcher 1 | . . . 1 . Swarmer 10 | . 3 3 . 4 Grunt 12 | . 1 . 3 8 Sentry 2 | . . . . 2 Best Kill Streak 6 | . 3 3 3 6 Combat Bots Only 5 | . 3 3 3 5 Max Kills in Single Turn 5 | . 1 1 1 5 Gunslinging . | . . . . . Exploded 4 | . . . . 4 Melee 1 | . . . 1 . Uniques/NPCs Destroyed . | . . . . . Combat | -11 -10 -10 -9 -8 -------- Run | Scr Mat Min Mat Mat Damage Taken 1345 | . 128 87 496 634 Core 221 | . 21 7 94 99 Absorbed by Shields . | . . . . . Core Remaining (%) 88 | 100 . 88 76 . Volleys Fired 84 | . 16 7 27 34 Largest 3 | . 2 2 2 3 Hottest 140 | . 40 40 115 140 Shots Fired 193 | . 32 14 46 101 Gun 192 | . 32 14 46 100 Cannon . | . . . . . Launcher 1 | . . . . 1 Special . | . . . . . Kinetic 134 | . 32 14 34 54 Thermal 58 | . . . 12 46 Explosive 1 | . . . . 1 Electromagnetic . | . . . . . Robot Hit Streak 26 | . 9 2 26 12 Robot Miss Streak 5 | . 3 2 2 5 Penetration Max . | . . . . . Secondary Targets 1 | . . 1 . . Max Gunslinging Chain 1 | . . 1 . . Shots Hit Robots 120 | . 20 7 38 55 Core Hits 54 | . 11 3 11 29 Critical Hits 1 | . . . 1 . Critical Kills . | . . . . . Critical Parts Destroyed 1 | . . . 1 . Melee Attacks . | . . . . . Impact . | . . . . . Slashing . | . . . . . Piercing . | . . . . . Sneak Attacks . | . . . . . Combat Hostiles . | . . . . . Follow-up Attacks . | . . . . . Damage Inflicted 1760 | . 173 78 428 1081 Guns 1580 | . 173 78 424 905 Cannons . | . . . . . Explosions 158 | . . . . 158 Melee . | . . . . . Ramming 22 | . . . 4 18 Kinetic 804 | . 173 78 215 338 Thermal 776 | . . . 209 567 Explosive 158 | . . . . 158 Electromagnetic . | . . . . . Impact . | . . . . . Slashing . | . . . . . Piercing . | . . . . . Highest Corruption . | . . . . . Average Corruption . | . . . . . Corruption Purged . | . . . . . Overload Shots . | . . . . . Overflow Damage . | . . . . . Projectiles . | . . . . . Explosions . | . . . . . Melee . | . . . . . Knockbacks . | . . . . . Impact . | . . . . . Kinetic . | . . . . . Secondary . | . . . . . Self-Inflicted Damage 6 | . . . . 6 Shots . | . . . . . Rammed 5 | . . . 2 3 Targets Rammed 6 | . . . 3 3 Kicked . | . . . . . Crushed 1 | . . . 1 . Highest Temperature 192 | . 12 . 192 57 Average Temperature 33 | . 8 . 66 17 Received Heat Transfer 684 | . 48 . 285 351 Siege Activations . | . . . . . Robots Corrupted . | . . . . . Combat Hostiles . | . . . . . Parts Fried . | . . . . . Impact Corruptions . | . . . . . Robots Melted . | . . . . . Combat Hostiles . | . . . . . Parts Melted 3 | . . . . 3 Heat Transferred 1431 | . . . 358 1073 Parts Sabotaged . | . . . . . Parts Stolen . | . . . . . Parts Stripped . | . . . . . Power Chain Reactions . | . . . . . Missiles Intercepted . | . . . . . Alert | -11 -10 -10 -9 -8 ------- Run | Scr Mat Min Mat Mat Peak Influence 395 | . 164 150 119 395 Initial 63 | . . 63 58 . Average 120 | . 90 145 68 201 Maximum Alert Level 1 | . . . . 1 Low Security (%) 86 | . 100 100 100 39 Level 1 13 | . . . . 60 Level 2 . | . . . . . Level 3 . | . . . . . Level 4 . | . . . . . Level 5 . | . . . . . High Security . | . . . . . Max Security . | . . . . . Squads Dispatched 7 | . 2 . 2 3 Investigation 2 | . 1 . . 1 Extermination . | . . . . . Reinforcement 5 | . 1 . 2 2 Assault . | . . . . . Garrison . | . . . . . Intercept . | . . . . . Construction Impeded 1 | . . . . 1 Haulers Reinforced . | . . . . . Stealth | -11 -10 -10 -9 -8 --------- Run | Scr Mat Min Mat Mat Distress Signals 1 | . . . . 1 Communications Jammed . | . . . . . Distress Signals . | . . . . . Times Spotted 52 | . 10 3 13 26 Peak Tracking Total 7 | . 3 3 4 7 Tactical Retreats 7 | . . . 4 3 Traps | -11 -10 -10 -9 -8 ------- Run | Scr Mat Min Mat Mat Traps Triggered 2 | . 1 . . 1 Indirectly . | . . . . . Trap Hack Attempts . | . . . . . Triggered . | . . . . . Disarmed . | . . . . . Reprogrammed . | . . . . . Reused . | . . . . . Traps Extracted . | . . . . . Installed . | . . . . . Triggered . | . . . . . Machines | -11 -10 -10 -9 -8 ---------- Run | Scr Mat Min Mat Mat Machines Disabled 1 | . . . . 1 Max in Single Turn 1 | . . . . 1 Machines Sabotaged . | . . . . . Garrisons Compromised . | . . . . . Overloaded Fab Kills . | . . . . . Fab Network Shutdowns . | . . . . . Hacking | -11 -10 -10 -9 -8 --------- Run | Scr Mat Min Mat Mat Machines Accessed 8 | . 5 1 2 . Terminals 6 | . 4 1 1 . Fabricators . | . . . . . Repair Stations . | . . . . . Recycling Units 1 | . 1 . . . Scanalyzers 1 | . . . 1 . Garrison Access . | . . . . . Total Hacks 30 | . 18 3 9 . Successful 20 | . 13 2 5 . Failed 10 | . 5 1 4 . Catastrophic 1 | . . . 1 . Database Lockouts . | . . . . . Manual 20 | . 14 3 3 . Terminals 26 | . 16 3 7 . Fabricators . | . . . . . Repair Stations . | . . . . . Recycling Units 2 | . 2 . . . Scanalyzers 2 | . . . 2 . Garrison Access . | . . . . . Terminal Hacks 10 | . 7 2 1 . Robot Analysis 2 | . 2 . . . Level Access Points 1 | . . 1 . . Branch Access Points 3 | . 2 1 . . Terminal Index 1 | . 1 . . . Recall Reinforcements 1 | . . . 1 . Hauler Manifests 1 | . 1 . . . Registered Components 1 | . 1 . . . Fabricator Hacks . | . . . . . Repair Station Hacks . | . . . . . Recycling Unit Hacks 2 | . 2 . . . Report Inventory 1 | . 1 . . . Retrieve Components 1 | . 1 . . . Scanalyzer 2 | . . . 2 . Insert Component 1 | . . . 1 . Analyze 1 | . . . 1 . Garrison Access Hacks . | . . . . . Unauthorized Hacks 6 | . 4 . 2 . Terminals 6 | . 4 . 2 . Track 3 | . 2 . 1 . Botnet 3 | . 2 . 1 . Fabricators . | . . . . . Repair Stations . | . . . . . Recycling Units . | . . . . . Scanalyzers . | . . . . . Garrison Access . | . . . . . Data Cores Recovered . | . . . . . Used . | . . . . . Hacking Detections 7 | . 5 1 1 . Full Trace Events . | . . . . . Feedback Events . | . . . . . Feedback Blocked . | . . . . . Robot Schematics Acquired . | . . . . . Robots Built . | . . . . . Matter . | . . . . . Time . | . . . . . Total Robot Build Rating . | . . . . . Part Schematics Acquired 1 | . . . 1 . Parts Built . | . . . . . Matter . | . . . . . Time . | . . . . . Total Part Build Rating . | . . . . . Parts Repaired . | . . . . . Time . | . . . . . Parts Recycled . | . . . . . Recycled Matter . | . . . . . Retrieved Matter . | . . . . . Retrieved Components 9 | . 9 . . . Parts Scanalyzed 1 | . . . 1 . Part Schematics Acquired 1 | . . . 1 . Parts Damaged . | . . . . . Bothacking | -11 -10 -10 -9 -8 ------------ Run | Scr Mat Min Mat Mat Used RIF Installer . | . . . . . Robots Hacked . | . . . . . Non-combat . | . . . . . Combat . | . . . . . Robot Hacks Applied . | . . . . . Relay Couplers Released . | . . . . . Robots Rewired . | . . . . . Allies Hacked . | . . . . . Hacks Repelled . | . . . . . Allies | -11 -10 -10 -9 -8 -------- Run | Scr Mat Min Mat Mat Total Allies 2 | . . 2 . . Largest Group 2 | . . 2 2 . Highest-Rated Group 41 | . . 41 41 . Highest-Rated Ally 31 | . . 31 31 . Total Orders . | . . . . . Ally Attacks 10 | . . . 10 . Total Damage 105 | . . . 105 . Kills 1 | . . . 1 . Allies Corrupted . | . . . . . Allies Melted . | . . . . . Intel | -11 -10 -10 -9 -8 ------- Run | Scr Mat Min Mat Mat Robot Analysis Total 2 | . 2 . . . Derelict Logs Recovered 2 | . . 2 . . Drone Launches . | . . . . . Drone Recoveries . | . . . . . Exploration | -11 -10 -10 -9 -8 ------------- Run | Scr Mat Min Mat Mat Turns Passed 1399 | . 327 300 451 321 Spaces Moved 744 | 1 197 177 213 156 Core . | . . . . . Treads 128 | . . . 109 19 Legs 479 | 1 197 177 104 . Wheels 137 | . . . . 137 Hover . | . . . . . Flight . | . . . . . Fastest Speed 100 | 120 120 150 150 100 Average Speed 141 | 120 134 150 165 110 Slowest Speed 200 | 120 150 150 200 180 Overloaded Moves . | . . . . . Propulsion Burnouts . | . . . . . Robots Hopped . | . . . . . Cave-ins Triggered . | . . . . . Exploration Rate (%) 29 | 1 47 60 24 14 Regions Visited 4 Branch Regions 1 Pre-discovered Areas 2 | . . 2 . . Known Exits Taken 2 | . 1 1 . . Unknown Exits Taken 2 | 1 . . 1 . Scrap Searched 2 | . . 2 . . Spaces Dug . | . . . . . Terrain Destroyed 5 | . . . . 5 Melee . | . . . . . Projectile . | . . . . . AOE 5 | . . . . 5 Terrain Rammed . | . . . . . Walls Destroyed . | . . . . . Machines Disabled . | . . . . . Actions | -11 -10 -10 -9 -8 --------- Run | Scr Mat Min Mat Mat Total 941 | . 235 199 272 235 Wait 47 | . 13 12 2 20 Move 740 | . 196 176 212 156 Hop . | . . . . . Pick Up 22 | . 2 2 11 7 Fast Attach 7 | . 1 . 3 3 Attach 9 | . . . 6 3 Detach 2 | . . . . 2 Swap 11 | . 3 2 1 5 Drop 13 | . 4 . 7 2 Fire 84 | . 16 7 27 34 Melee . | . . . . . Ram 1 | . . . . 1 Kick . | . . . . . Crush 5 | . . . 3 2 Escape Stasis . | . . . . . Rewire . | . . . . . Trap . | . . . . . Miscellaneous . | . . . . . Route ------- -11/Scrapyard -10/Materials (discovered 2 exits: *Min x2) -10/Mines (discovered 2 exits: *Mat x2) -9/Materials -8/Materials History --------- Turn | Location | Event 1 | -11/Scrapyard | Discovered new exit (range 0) 1 | -11/Scrapyard | Entered Materials 108 | -10/Materials | Identified exit to Mines 319 | -10/Materials | Build established: Mutant 328 | -10/Materials | Entered Mines 365 | -10/Mines | Identified exit to Materials 407 | -10/Mines | Found a damaged Exp. Sensor Array with a note attached 410 | -10/Mines | Found Prototype Device 431 | -10/Mines | Received a Rocket Launcher from a helpful Derelict 458 | -10/Mines | Learned location of Storage (-8) 498 | -10/Mines | Learned location of Zion (-7) 628 | -10/Mines | Entered Materials 628 | -9/Materials | Accompanied by 2 allies 628 | -9/Materials | Evolved 2 slots: Propulsion x1, Utility x1 633 | -9/Materials | Led the pair of lost Derelicts to an unsafe place 650 | -9/Materials | Identified Exp. Sensor Array 888 | -9/Materials | Lost 5 parts (1p2n2w) 1002 | -9/Materials | Discovered new exit (range 3) 1079 | -9/Materials | Entered another Materials area 1079 | -8/Materials | Evolved 2 slots: Utility x1, Weapon x1 1400 | -8/Materials | Self-destructed Last Messages --------------- 01345_ K-01 Serf collects debris. 01350_ Slammed into G-47 Trooper. 01352_ Atomic Centrifuge disabled. 01358_ G-47 Trooper destroyed. 01361_ Acquired 14 matter. 01363_ Acquired 4 matter. 01365_ Wheel destroyed. 01369_ Acquired 10 matter. 01371_ Acquired 4 matter. 01373_ Imp. Heat Sink melted. 01373_ Particle Gun melted. 01373_ G-47 Trooper destroyed. 01374_ Acquired 4 matter. 01378_ K-01 Serf collects debris. 01382_ U-05 Engineer builds a Door. 01385_ K-01 Serf collects debris. 01386_ Slammed into K-01 Serf. 01397_ C-30 ARC bursts open, deploying its payload. 01397_ L-31 Rogue unfolds itself. 01397_ G-47 Trooper unfolds itself. Map ----- +----------------------------------------------------+ | | | | | | | | | | | | | | | | | | | | | ?????????????????????????????????????????????????? | | ?????????????????????????????????????????????????? | | ?????????????????????????????????????????????????? | | ?????????????????????????????????????????????????? | | ?????????????????????????????????????????????????? | | ?????????????????????????????????????????????????? | | ????????????????????????????#####????????????????? | | ???????????????????????????? #????????????????? | | ???????????????????????????? ?????????????????? | | ????????????????????????#### ??????????????????? | | ???????????????????????? ???????????????????? | | ????????????????????????# #???????????????????? | | ????????????????????????# a #???????????????????? | | ????????????????????????# +???????????????????? | | ????????????????????????# #???????????????????? | | ????????????????????????#@ #???????????????????? | | ????????????????????????# #???????????????????? | | ????????????????????????#l #???????????????????? | | ????????????????????????# g![#???????????????????? | | ????????????????????????#%g%!###########???+?????? | | ????????????????????????#g[=%#* ] +??? ?????? | | ??????????????????#######g=%=#[* #??? ?????? | | ??????????????????# ==!o%+=*[ #??? ?????? | | ??????????????????# ######g#=! = !#??# #????? | | ??????????????????# ######/###########??# #????? | | ??????????????????+ / =%*=#??????????# #????? | | ????????????????????### """[%#??????????# #????? | | ??????????????????????# "" =#??????????# #????? | | ??????????????????????# " " #??????????# #????? | | ??????????????????????# #??????????# #????? | | ??????????????????????# """ #??????????# #????? | | ??????????????????????# """ ############!#????? | | ??????????????????????# """ + [[ #????? | | ??????????????????????# ############%#????? | | ??????????????????????#+#####+##? ??????##!###### | | ???????????????????????????? ?+ ! ????# # | | ???????????????????????????? ?# ""??# !# | | ???????????????????????????? ??# !! """ # [ [ | | ????????????????????????????# ??# !! / [% %%[= | | ????????????????????????????#+??# " " # = | +----------------------------------------------------+ Best States ------------- Heat Dissipation 53 Energy Generation 10 Energy Capacity 250 Matter Stores 300 Matter Capacity 300 Sight Range 18 Terrain Scan Density 10 Evasion (%) 40 Recoil Reduction 2 Item Schematics ----------------- Exp. Sensor Array | -9/Materials | Scanalyzed Robot Schematics ------------------ None Fabricated ------------ Nothing Alien Tech Used ----------------- None Achievements -------------- None Challenges ------------ None Game ------ Seed ReactionTransportCloak Manual? 0 Play Time 00:15:34 Cumulative 231.0 hours Start 2020.09.17 @ 19:30:50 End 2020.09.17 @ 19:52:30 Sessions 3 Manual Loads 0 Difficulty Rogue Special Mode None Game No. 527 Rogue 527 Adventurer 0 Explorer 0 Win Type - Total 4 Types 3/0/0/1/0/0/0/0/0 Lore% 62 Gallery% 66 Achievement% 56 Wizard Run 0 Options --------- ASCII 0 Keyboard 0 Movement Arrows Keybinds 0 Fullscreen 1 Font 16/SmallcapsGlow Map View 75x55 Tactical HUD 1 Map Filters NONE Filters NONE Steam 1 RUN: e3f73786-a0fa-427c-bf88-8c118b8cecbb